fUST/lending_fUST_20250210
["ID","MTS","AMOUNT","RATE_DAILY","PERIOD"]
[352537360,1739157042089,-504.07738757,0.00011095,2]
[352537361,1739157042098,-6458.16,0.00011095,2]
[352537362,1739157042108,-500.0,0.00011095,2]
[352537363,1739157042118,-500.0,0.00011095,2]
[352537364,1739157042127,-597.05,0.00011095,2]
[352537365,1739157042137,-502.61298474,0.00011095,2]
[352537366,1739157042146,-500.0,0.00011095,2]
[352537367,1739157042156,-500.0,0.00011095,2]
[352537368,1739157042165,-516.6680374,0.00011095,2]
[352537369,1739157042175,-500.0,0.00011095,2]
[352537370,1739157042184,-500.0,0.00011095,2]
[352537371,1739157042193,-3190.8,0.00011095,2]
[352537372,1739157042203,-2682.37,0.00011095,2]
[352537373,1739157042212,-500.0,0.00011095,2]
[352537374,1739157042222,-500.0,0.00011095,2]
[352537375,1739157042232,-502.16586484,0.00011095,2]
[352537376,1739157042242,-500.0,0.00011095,2]
[352537377,1739157042251,-500.0,0.00011095,2]
[352537378,1739157042261,-682.52,0.00011095,2]
[352537379,1739157042271,-502.71538925,0.00011095,2]
[352537380,1739157042280,-501.60629592,0.00011095,2]
[352537381,1739157042290,-563.40610449,0.00011095,2]
[352537382,1739157042299,-2927.1,0.00011095,2]
[352537383,1739157042309,-500.0,0.00011095,2]
[352537384,1739157042319,-1676.49,0.00011095,2]
[352537385,1739157042329,-500.0,0.00011095,2]
[352537386,1739157042339,-500.0,0.00011095,2]
[352537387,1739157042349,-178.15,0.00011095,2]
[352537388,1739157042358,-500.0,0.00011095,2]
[352537389,1739157042367,-931.74,0.00011095,2]
[352537390,1739157042377,-1098.14,0.00011095,2]
[352537391,1739157042386,-502.69845033,0.00011095,2]
[352537392,1739157042395,-500.0,0.00011095,2]
[352537393,1739157042405,-10232.11,0.00011095,2]
[352537394,1739157042415,-18681.61,0.00011095,2]
[352537395,1739157042424,-500.0,0.00011095,2]
[352537396,1739157042434,-213.62,0.00011095,2]
[352537397,1739157042443,-500.0,0.00011095,2]
[352537398,1739157042452,-500.0,0.00011095,2]
[352537399,1739157042462,-500.0,0.00011095,2]
[352537400,1739157042472,-500.0,0.00011095,2]
[352537401,1739157042481,-1035.6,0.00011095,2]
[352537402,1739157042492,-202.21366367,0.00011095,2]
[352537403,1739157042501,-1217.71,0.00011095,2]
[352537404,1739157042511,-500.0,0.00011095,2]
[352537405,1739157042520,-500.0,0.00011095,2]
[352537406,1739157042530,-500.0,0.00011095,2]
[352537407,1739157042539,-500.0,0.00011095,2]
[352537408,1739157042549,-500.0,0.00011095,2]
[352537409,1739157042558,-505.03,0.00011095,2]
[352537410,1739157042569,-505.73,0.00011095,2]
[352537411,1739157042577,-500.0,0.00011095,2]
[352537412,1739157042587,-500.0,0.00011095,2]
[352537413,1739157042597,-502.7286688,0.00011095,2]
[352537414,1739157042607,-1278.35,0.00011095,2]
[352537415,1739157042616,-500.0,0.00011095,2]
[352537416,1739157042626,-500.0,0.00011095,2]
[352537417,1739157042636,-500.0,0.00011095,2]
[352537418,1739157042645,-500.0,0.00011095,2]
[352537419,1739157042655,-500.0,0.00011095,2]
[352537420,1739157042665,-502.87330247,0.00011095,2]
[352537421,1739157042675,-1105.55,0.00011095,2]
[352537422,1739157042684,-335.32901404,0.00011095,2]
[352537423,1739157042693,-448.35721145,0.00011095,2]
[352537424,1739157042703,-500.0,0.00011095,2]
[352537425,1739157042713,-500.0,0.00011095,2]
[352537426,1739157042723,-500.0,0.00011095,2]
[352537427,1739157042733,-1800.75,0.00011095,2]
[352537428,1739157042743,-500.0,0.00011095,2]
[352537429,1739157042753,-500.0,0.00011095,2]
[352537430,1739157042763,-501.4570901,0.00011095,2]
[352537431,1739157042773,-500.0,0.00011095,2]
[352537432,1739157042782,-500.0,0.00011095,2]
[352537433,1739157042791,-500.0,0.00011095,2]
[352537434,1739157042801,-693.92,0.00011095,2]
[352537435,1739157042812,-500.0,0.00011095,2]
[352537436,1739157042826,-500.0,0.00011095,2]
[352537437,1739157042837,-765.33,0.00011095,2]
[352537438,1739157042847,-500.0,0.00011095,2]
[352537439,1739157042857,-1709.66,0.00011095,2]
[352537440,1739157042868,-500.0,0.00011095,2]
[352537441,1739157042879,-500.0,0.00011095,2]
[352537442,1739157042892,-331.44418723,0.00011095,2]
[352537443,1739157042903,-253.45210441,0.00011095,2]
[352537444,1739157042914,-500.0,0.00011095,2]
[352537445,1739157042924,-647.22,0.00011095,2]
[352537446,1739157042934,-500.0,0.00011095,2]
[352537448,1739157042944,-910.77,0.00011095,2]
[352537450,1739157042955,-500.0,0.00011095,2]
[352537452,1739157042965,-500.0,0.00011095,2]
[352537454,1739157042976,-853.86,0.00011095,2]
[352537456,1739157042985,-500.0,0.00011095,2]
[352537458,1739157042995,-500.0,0.00011095,2]
[352537460,1739157043005,-271.35650117,0.00011095,2]
[352537462,1739157043015,-683.67,0.00011095,2]
[352537464,1739157043026,-500.0,0.00011095,2]
[352537466,1739157043036,-669.08,0.00011095,2]
[352537467,1739157043046,-601.08242864,0.00011095,2]
[352537468,1739157043056,-483.38278331,0.00011095,2]
[352537469,1739157043070,-500.0,0.00011095,2]
[352537470,1739157043080,-500.0,0.00011095,2]
[352537471,1739157043090,-500.0,0.00011095,2]
[352537472,1739157043100,-500.0,0.00011095,2]
[352537473,1739157043109,-500.0,0.00011095,2]
[352537474,1739157043119,-2146.0,0.00011095,2]
[352537475,1739157043129,-500.0,0.00011095,2]
[352537476,1739157043139,-599.63631438,0.00011095,2]
[352537477,1739157043148,-717.2,0.00011095,2]
[352537478,1739157043159,-500.0,0.00011095,2]
[352537479,1739157043168,-500.0,0.00011095,2]
[352537480,1739157043177,-3892.37,0.00011095,2]
[352537481,1739157043186,-500.0,0.00011095,2]
[352537482,1739157043196,-151.89511018,0.00011095,2]
[352537483,1739157043205,-504.82923912,0.00011095,2]
[352537484,1739157043214,-502.36711601,0.00011095,2]
[352537485,1739157043224,-501.95912582,0.00011095,2]
[352537486,1739157043234,-500.0,0.00011095,2]
[352537487,1739157043243,-500.0,0.00011095,2]
[352537488,1739157043253,-500.0,0.00011095,2]
[352537489,1739157043264,-500.0,0.00011095,2]
[352537490,1739157043273,-799.16,0.00011095,2]
[352537491,1739157043282,-500.0,0.00011095,2]
[352537492,1739157043292,-500.0,0.00011232,2]
[352537493,1739157043301,-494.74015023,0.00011232,2]
[352537494,1739157043311,-500.0,0.00011232,2]
[352537495,1739157043325,-500.0,0.00011232,2]
[352537496,1739157043334,-500.0,0.00011232,2]
[352537497,1739157043343,-189.23252493,0.00011232,2]
[352537498,1739157043352,-500.0,0.00011232,2]
[352537499,1739157043361,-213.26041955,0.00011232,2]
[352537500,1739157043370,-500.0,0.00011232,2]
[352537501,1739157043379,-500.0,0.00011232,2]
[352537502,1739157043389,-500.0,0.00011232,2]
[352537503,1739157043399,-552.56,0.00011232,2]
[352537504,1739157043409,-500.0,0.00011232,2]
[352537505,1739157043419,-500.0,0.00011232,2]
[352537506,1739157043428,-500.0,0.00011232,2]
[352537507,1739157043437,-500.0,0.00011232,2]
[352537508,1739157043446,-500.0,0.00011232,2]
[352537509,1739157043456,-500.0,0.00011232,2]
[352537510,1739157043466,-502.03096894,0.00011232,2]
[352537511,1739157043476,-500.0,0.00011232,2]
[352537512,1739157043486,-500.0,0.00011232,2]
[352537513,1739157043496,-160.36570698,0.00011232,2]
[352537514,1739157043505,-500.0,0.00011232,2]
[352537515,1739157043515,-500.0,0.00011232,2]
[352537516,1739157043525,-500.0,0.00011232,2]
[352537517,1739157043534,-500.0,0.00011232,2]
[352537518,1739157043544,-503.40614959,0.00011232,2]
[352537519,1739157043554,-500.0,0.00011232,2]
[352537520,1739157043564,-500.0,0.00011232,2]
[352537521,1739157043577,-182.08696166,0.00011232,2]
[352537522,1739157043586,-500.0,0.00011232,2]
[352537523,1739157043597,-500.0,0.00011232,2]
[352537524,1739157043606,-500.0,0.00011232,2]
[352537525,1739157043616,-502.80999376,0.00011232,2]
[352537526,1739157043626,-673.68,0.00011232,2]
[352537527,1739157043635,-500.0,0.00011232,2]
[352537528,1739157043645,-500.0,0.00011232,2]
[352537529,1739157043655,-500.0,0.00011232,2]
[352537531,1739157043664,-500.0,0.00011232,2]
[352537532,1739157043675,-500.0,0.00011232,2]
[352537534,1739157043685,-500.0,0.00011232,2]
[352537536,1739157043695,-500.0,0.00011232,2]
[352537538,1739157043704,-500.0,0.00011232,2]
[352537540,1739157043715,-500.0,0.00011232,2]
[352537541,1739157043725,-500.0,0.00011232,2]
[352537543,1739157043735,-500.0,0.00011232,2]
[352537545,1739157043745,-503.2706874,0.00011232,2]
[352537546,1739157043755,-522.1428522,0.00011232,2]
[352537547,1739157043765,-197.74095344,0.00011232,2]
[352537548,1739157043988,-302.25904656,0.00011232,2]
[352537549,1739157043998,-500.0,0.00011232,2]
[352537550,1739157044008,-1093.78,0.00011232,2]
[352537551,1739157044019,-500.0,0.00011232,2]
[352537552,1739157044031,-500.0,0.00011232,2]
[352537553,1739157044040,-436.921988,0.00011232,2]
[352537554,1739157044572,-500.0,0.00010958,2]
[352537555,1739157044582,-610.47,0.00010958,2]
[352537556,1739157044592,-500.0,0.00010958,2]
[352537557,1739157044602,-625.33361028,0.00010958,2]
[352537558,1739157044612,-835.79,0.00010959,2]
[352537559,1739157044622,-500.0,0.00011095,2]
[352537560,1739157044632,-610.47,0.00011095,2]
[352537561,1739157044641,-63.078012,0.00011232,2]
[352537562,1739157044651,-1665.25,0.00011232,2]
[352537563,1739157044661,-500.0,0.00011232,2]
[352537564,1739157044670,-500.0,0.00011232,2]
[352537565,1739157044680,-557.15448279,0.00011232,2]
[352537566,1739157044690,-500.0,0.00011232,2]
[352537567,1739157044701,-799.58,0.00011232,2]
[352537568,1739157044713,-504.15519562,0.00011232,2]
[352537569,1739157044722,-500.0,0.00011232,2]
[352537570,1739157044732,-597.05,0.00011232,2]
[352537571,1739157044742,-500.0,0.00011232,2]
[352537572,1739157044752,-500.0,0.00011232,2]
[352537573,1739157044761,-500.0,0.00011232,2]
[352537574,1739157044771,-3190.8,0.00011232,2]
[352537575,1739157044781,-2682.37,0.00011232,2]
[352537576,1739157044790,-360.04309893,0.00011232,2]
[352537577,1739157044800,-682.52,0.00011232,2]
[352537578,1739157044815,-2927.1,0.00011232,2]
[352537579,1739157044827,-500.0,0.00011232,2]
[352537580,1739157044836,-1676.49,0.00011232,2]
[352537581,1739157044847,-500.0,0.00011232,2]
[352537582,1739157044856,-500.0,0.00011232,2]
[352537583,1739157044866,-346.59434901,0.00011232,2]
[352537584,1739157044875,-931.74,0.00011232,2]
[352537585,1739157044885,-1098.14,0.00011232,2]
[352537586,1739157044896,-500.0,0.00011232,2]
[352537587,1739157044906,-10232.11,0.00011232,2]
[352537588,1739157044916,-18681.61,0.00011232,2]
[352537589,1739157044925,-500.0,0.00011232,2]
[352537590,1739157044935,-500.0,0.00011232,2]
[352537591,1739157044946,-1035.6,0.00011232,2]
[352537592,1739157044955,-1217.71,0.00011232,2]
[352537593,1739157044964,-500.0,0.00011232,2]
[352537594,1739157044973,-500.0,0.00011232,2]
[352537595,1739157044984,-500.0,0.00011232,2]
[352537596,1739157044994,-502.59886123,0.00011232,2]
[352537597,1739157045003,-505.03,0.00011232,2]
[352537598,1739157045013,-505.73,0.00011232,2]
[352537599,1739157045023,-1278.35,0.00011232,2]
[352537600,1739157045033,-500.0,0.00011232,2]
[352537601,1739157045043,-500.0,0.00011232,2]
[352537602,1739157045052,-500.0,0.00011232,2]
[352537603,1739157045063,-500.0,0.00011232,2]
[352537604,1739157045074,-1105.55,0.00011232,2]
[352537605,1739157045084,-500.0,0.00011232,2]
[352537606,1739157045093,-500.0,0.00011232,2]
[352537607,1739157045103,-1800.75,0.00011232,2]
[352537608,1739157045113,-500.0,0.00011232,2]
[352537609,1739157045122,-500.0,0.00011232,2]
[352537610,1739157045132,-197.0201522,0.00011232,2]
[352537611,1739157045142,-502.71504357,0.00011232,2]
[352537612,1739157045152,-693.92,0.00011232,2]
[352537613,1739157045162,-500.0,0.00011232,2]
[352537614,1739157045171,-500.0,0.00011232,2]
[352537615,1739157045181,-765.33,0.00011232,2]
[352537616,1739157045191,-500.0,0.00011232,2]
[352537617,1739157045200,-1709.66,0.00011232,2]
[352537618,1739157045209,-500.0,0.00011232,2]
[352537619,1739157045219,-647.22,0.00011232,2]
[352537620,1739157045228,-500.0,0.00011232,2]
[352537621,1739157045238,-910.77,0.00011232,2]
[352537622,1739157045247,-853.86,0.00011232,2]
[352537623,1739157045257,-500.0,0.00011232,2]
[352537624,1739157045266,-505.42088543,0.00011232,2]
[352537625,1739157045276,-683.67,0.00011232,2]
[352537626,1739157045285,-500.0,0.00011232,2]
[352537627,1739157045295,-669.08,0.00011232,2]
[352537628,1739157045305,-500.0,0.00011232,2]
[352537629,1739157045314,-500.0,0.00011232,2]
[352537630,1739157045327,-500.0,0.00011232,2]
[352537631,1739157045337,-500.0,0.00011232,2]
[352537632,1739157045347,-2146.0,0.00011232,2]
[352537633,1739157045356,-500.0,0.00011232,2]
[352537634,1739157045366,-717.2,0.00011232,2]
[352537635,1739157045376,-500.0,0.00011232,2]
[352537636,1739157045385,-500.0,0.00011232,2]
[352537637,1739157045395,-3892.37,0.00011232,2]
[352537638,1739157045405,-500.0,0.00011232,2]
[352537639,1739157045414,-500.0,0.00011232,2]
[352537640,1739157045424,-799.16,0.00011232,2]
[352537641,1739157045434,-500.0,0.00011232,2]
[352537642,1739157045444,-500.0,0.00011232,2]
[352537643,1739157045453,-610.47,0.00011232,2]
[352537644,1739157045463,-373.05024037,0.00011369,2]
[352537645,1739157045472,-500.0,0.00011369,2]
[352537646,1739157045481,-500.0,0.00011369,2]
[352537647,1739157045491,-500.0,0.00011369,2]
[352537648,1739157045501,-500.0,0.00011369,2]
[352537649,1739157045511,-500.0,0.00011369,2]
[352537650,1739157045521,-500.0,0.00011369,2]
[352537651,1739157045531,-552.56,0.00011369,2]
[352537652,1739157045541,-500.0,0.00011369,2]
[352537653,1739157045550,-500.0,0.00011369,2]
[352537654,1739157045560,-500.0,0.00011369,2]
[352537655,1739157045652,-500.0,0.00011369,2]
[352537656,1739157045662,-500.0,0.00011369,2]
[352537657,1739157045672,-500.0,0.00011369,2]
[352537658,1739157045682,-500.0,0.00011369,2]
[352537659,1739157045692,-500.0,0.00011369,2]
[352537660,1739157045702,-500.0,0.00011369,2]
[352537661,1739157045711,-500.0,0.00011369,2]
[352537662,1739157045721,-500.0,0.00011369,2]
[352537663,1739157045731,-673.68,0.00011369,2]
[352537664,1739157045741,-500.0,0.00011369,2]
[352537665,1739157045751,-374.74948153,0.00011369,2]
[352537666,1739157045761,-500.0,0.00011369,2]
[352537667,1739157045770,-173.56016844,0.00011369,2]
[352537668,1739157045780,-500.0,0.00011369,2]
[352537669,1739157045790,-500.0,0.00011369,2]
[352537670,1739157045800,-500.0,0.00011369,2]
[352537671,1739157045811,-500.0,0.00011369,2]
[352537672,1739157045824,-500.0,0.00011369,2]
[352537673,1739157045834,-500.0,0.00011369,2]
[352537674,1739157045844,-1093.78,0.00011369,2]
[352537675,1739157045855,-500.0,0.00011369,2]
[352537676,1739157045865,-500.0,0.00011369,2]
[352537677,1739157045875,-1665.25,0.00011369,2]
[352537678,1739157045884,-500.0,0.00011369,2]
[352537679,1739157045897,-500.0,0.00011369,2]
[352537680,1739157045907,-500.0,0.00011369,2]
[352537682,1739157045917,-799.58,0.00011369,2]
[352537684,1739157045926,-500.0,0.00011369,2]
[352537685,1739157045936,-597.05,0.00011369,2]
[352537687,1739157045945,-500.0,0.00011369,2]
[352537689,1739157045955,-500.0,0.00011369,2]
[352537691,1739157045964,-500.0,0.00011369,2]
[352537692,1739157045973,-3190.8,0.00011369,2]
[352537693,1739157045983,-2682.37,0.00011369,2]
[352537694,1739157045993,-682.52,0.00011369,2]
[352537695,1739157046003,-2927.1,0.00011369,2]
[352537696,1739157046013,-500.0,0.00011369,2]
[352537697,1739157046022,-1676.49,0.00011369,2]
[352537698,1739157046032,-500.0,0.00011369,2]
[352537699,1739157046042,-500.0,0.00011369,2]
[352537700,1739157046051,-931.74,0.00011369,2]
[352537701,1739157046061,-1098.14,0.00011369,2]
[352537702,1739157046071,-500.0,0.00011369,2]
[352537703,1739157046080,-10232.11,0.00011369,2]
[352537704,1739157046090,-18681.61,0.00011369,2]
[352537705,1739157046100,-500.0,0.00011369,2]
[352537706,1739157046110,-500.0,0.00011369,2]
[352537707,1739157046119,-1035.6,0.00011369,2]
[352537708,1739157046129,-1217.71,0.00011369,2]
[352537709,1739157046138,-500.0,0.00011369,2]
[352537710,1739157046147,-500.0,0.00011369,2]
[352537711,1739157046157,-505.03,0.00011369,2]
[352537712,1739157046167,-505.73,0.00011369,2]
[352537714,1739157046176,-1278.35,0.00011369,2]
[352537716,1739157046186,-500.0,0.00011369,2]
[352537718,1739157046195,-472.88,0.00011369,2]
[352537719,1739157046206,-500.0,0.00011369,2]
[352537720,1739157046217,-1105.55,0.00011369,2]
[352537721,1739157046227,-500.0,0.00011369,2]
[352537722,1739157046236,-500.0,0.00011369,2]
[352537723,1739157046246,-1800.75,0.00011369,2]
[352537724,1739157046256,-500.0,0.00011369,2]
[352537725,1739157046266,-190.66863686,0.00011369,2]
[352537726,1739157046275,-693.92,0.00011369,2]
[352537728,1739157046284,-500.0,0.00011369,2]
[352537730,1739157046294,-500.0,0.00011369,2]
[352537731,1739157046304,-765.33,0.00011369,2]
[352537733,1739157046314,-265.01161138,0.00011369,2]
[352537735,1739157046324,-1709.66,0.00011369,2]
[352537737,1739157046334,-500.0,0.00011369,2]
[352537739,1739157046344,-647.22,0.00011369,2]
[352537741,1739157046354,-500.0,0.00011369,2]
[352537743,1739157046364,-910.77,0.00011369,2]
[352537745,1739157046374,-853.86,0.00011369,2]
[352537748,1739157046384,-500.0,0.00011369,2]
[352537750,1739157046393,-683.67,0.00011369,2]
[352537751,1739157046402,-500.0,0.00011369,2]
[352537753,1739157046412,-669.08,0.00011369,2]
[352537755,1739157046422,-500.0,0.00011369,2]
[352537757,1739157046431,-503.0558322,0.00011369,2]
[352537759,1739157046441,-242.96155482,0.00011369,2]
[352537761,1739157046451,-500.0,0.00011369,2]
[352537763,1739157046460,-2146.0,0.00011369,2]
[352537765,1739157046469,-500.0,0.00011369,2]
[352537767,1739157046479,-717.2,0.00011369,2]
[352537769,1739157046488,-500.0,0.00011369,2]
[352537771,1739157046498,-500.0,0.00011369,2]
[352537773,1739157046507,-3892.37,0.00011369,2]
[352537775,1739157046516,-500.0,0.00011369,2]
[352537777,1739157046525,-504.70113771,0.00011369,2]
[352537779,1739157046535,-799.16,0.00011369,2]
[352537781,1739157046545,-500.0,0.00011369,2]
[352537783,1739157046555,-500.0,0.00011369,2]
[352537785,1739157046565,-610.47,0.00011369,2]
[352537787,1739157046575,-500.0,0.00011506,2]
[352537789,1739157046584,-500.0,0.00011506,2]
[352537791,1739157046594,-500.0,0.00011506,2]
[352537793,1739157046605,-500.0,0.00011506,2]
[352537795,1739157046615,-500.0,0.00011506,2]
[352537797,1739157046625,-500.0,0.00011506,2]
[352537799,1739157046635,-552.56,0.00011506,2]
[352537801,1739157046646,-500.0,0.00011506,2]
[352537803,1739157046656,-500.0,0.00011506,2]
[352537805,1739157046666,-500.0,0.00011506,2]
[352537808,1739157046677,-500.0,0.00011506,2]
[352537810,1739157046687,-500.0,0.00011506,2]
[352537811,1739157046698,-500.0,0.00011506,2]
[352537813,1739157046707,-500.0,0.00011506,2]
[352537815,1739157046718,-500.0,0.00011506,2]
[352537817,1739157046728,-500.0,0.00011506,2]
[352537819,1739157046738,-500.0,0.00011506,2]
[352537821,1739157046748,-673.68,0.00011506,2]
[352537823,1739157046758,-500.0,0.00011506,2]
[352537825,1739157046768,-500.0,0.00011506,2]
[352537827,1739157046777,-500.0,0.00011506,2]
[352537829,1739157046787,-500.0,0.00011506,2]
[352537832,1739157046797,-500.0,0.00011506,2]
[352537833,1739157046807,-500.0,0.00011506,2]
[352537835,1739157046823,-500.0,0.00011506,2]
[352537838,1739157046834,-500.0,0.00011506,2]
[352537840,1739157046845,-1093.78,0.00011506,2]
[352537842,1739157046855,-500.0,0.00011506,2]
[352537844,1739157046865,-500.0,0.00011506,2]
[352537846,1739157046875,-1665.25,0.00011506,2]
[352537848,1739157046885,-523.61398343,0.00011506,2]
[352537850,1739157046896,-500.0,0.00011506,2]
[352537852,1739157046907,-500.0,0.00011506,2]
[352537854,1739157046917,-799.58,0.00011506,2]
[352537856,1739157046927,-500.0,0.00011506,2]
[352537858,1739157046937,-597.05,0.00011506,2]
[352537860,1739157046947,-500.0,0.00011506,2]
[352537862,1739157046956,-500.0,0.00011506,2]
[352537864,1739157046966,-3190.8,0.00011506,2]
[352537866,1739157046975,-2682.37,0.00011506,2]
[352537868,1739157046985,-682.52,0.00011506,2]
[352537870,1739157046994,-2927.1,0.00011506,2]
[352537872,1739157047003,-502.54663444,0.00011506,2]
[352537874,1739157047013,-1676.49,0.00011506,2]
[352537876,1739157047022,-500.0,0.00011506,2]
[352537878,1739157047031,-500.0,0.00011506,2]
[352537880,1739157047040,-931.74,0.00011506,2]
[352537882,1739157047050,-1098.14,0.00011506,2]
[352537884,1739157047059,-500.0,0.00011506,2]
[352537885,1739157047068,-10232.11,0.00011506,2]
[352537888,1739157047083,-18681.61,0.00011506,2]
[352537890,1739157047092,-500.0,0.00011506,2]
[352537892,1739157047103,-500.0,0.00011506,2]
[352537893,1739157047112,-1035.6,0.00011506,2]
[352537896,1739157047123,-1217.71,0.00011506,2]
[352537897,1739157047132,-500.0,0.00011506,2]
[352537899,1739157047141,-500.0,0.00011506,2]
[352537901,1739157047150,-505.03,0.00011506,2]
[352537903,1739157047159,-505.73,0.00011506,2]
[352537905,1739157047169,-1278.35,0.00011506,2]
[352537907,1739157047180,-500.0,0.00011506,2]
[352537909,1739157047190,-500.0,0.00011506,2]
[352537911,1739157047201,-1105.55,0.00011506,2]
[352537913,1739157047210,-500.0,0.00011506,2]
[352537915,1739157047219,-500.0,0.00011506,2]
[352537917,1739157047229,-1800.75,0.00011506,2]
[352537919,1739157047239,-500.0,0.00011506,2]
[352537921,1739157047249,-693.92,0.00011506,2]
[352537923,1739157047258,-500.0,0.00011506,2]
[352537925,1739157047269,-500.0,0.00011506,2]
[352537927,1739157047278,-765.33,0.00011506,2]
[352537929,1739157047287,-1709.66,0.00011506,2]
[352537931,1739157047297,-500.0,0.00011506,2]
[352537940,1739157047382,-647.22,0.00011506,2]
[352537942,1739157047393,-500.0,0.00011506,2]
[352537944,1739157047404,-910.77,0.00011506,2]
[352537946,1739157047414,-853.86,0.00011506,2]
[352537948,1739157047425,-500.0,0.00011506,2]
[352537950,1739157047436,-683.67,0.00011506,2]
[352537952,1739157047446,-500.0,0.00011506,2]
[352537954,1739157047458,-669.08,0.00011506,2]
[352537956,1739157047470,-500.0,0.00011506,2]
[352537958,1739157047481,-500.0,0.00011506,2]
[352537960,1739157047491,-2146.0,0.00011506,2]
[352537962,1739157047501,-500.0,0.00011506,2]
[352537964,1739157047512,-717.2,0.00011506,2]
[352537966,1739157047521,-500.0,0.00011506,2]
[352537968,1739157047532,-3892.37,0.00011506,2]
[352537970,1739157047542,-500.0,0.00011506,2]
[352537972,1739157047552,-799.16,0.00011506,2]
[352537974,1739157047561,-500.0,0.00011506,2]
[352537975,1739157047571,-392.18716296,0.00011506,2]
[352537976,1739157047583,-610.47,0.00011506,2]
[352537977,1739157047592,-429.88524004,0.00011599,2]
[352537978,1739157047602,-500.0,0.00011643,2]
[352537979,1739157047612,-500.0,0.00011643,2]
[352537980,1739157047622,-500.0,0.00011643,2]
[352537981,1739157047633,-500.0,0.00011643,2]
[352537982,1739157047645,-500.0,0.00011643,2]
[352537983,1739157047662,-500.0,0.00011643,2]
[352537984,1739157047672,-552.56,0.00011643,2]
[352537985,1739157047682,-500.0,0.00011643,2]
[352537986,1739157047694,-500.0,0.00011643,2]
[352537987,1739157047706,-500.0,0.00011643,2]
[352537988,1739157047716,-500.0,0.00011643,2]
[352537989,1739157047726,-500.0,0.00011643,2]
[352537990,1739157047737,-500.0,0.00011643,2]
[352537992,1739157047748,-500.0,0.00011643,2]
[352537994,1739157047758,-500.0,0.00011643,2]
[352537996,1739157047769,-500.0,0.00011643,2]
[352537998,1739157047779,-500.0,0.00011643,2]
[352538000,1739157047788,-673.68,0.00011643,2]
[352538002,1739157047798,-500.0,0.00011643,2]
[352538004,1739157047809,-500.0,0.00011643,2]
[352538006,1739157047826,-500.0,0.00011643,2]
[352538008,1739157047838,-500.0,0.00011643,2]
[352538010,1739157047848,-500.0,0.00011643,2]
[352538012,1739157047859,-500.0,0.00011643,2]
[352538014,1739157047869,-500.0,0.00011643,2]
[352538016,1739157047879,-1093.78,0.00011643,2]
[352538018,1739157047890,-500.0,0.00011643,2]
[352538020,1739157047901,-500.0,0.00011643,2]
[352538022,1739157047911,-1665.25,0.00011643,2]
[352538024,1739157047921,-500.0,0.00011643,2]
[352538026,1739157047931,-500.0,0.00011643,2]
[352538028,1739157047941,-799.58,0.00011643,2]
[352538030,1739157047951,-500.0,0.00011643,2]
[352538032,1739157047960,-597.05,0.00011643,2]